bitfinex/quotes_ETHUSD_20220309
["timestamp","ask_amount","ask_price","bid_price","bid_amount"]
[1646853449175,0.94464766,2685.3,2684.9,0.04237952]
[1646853449374,0.94464766,2685.3,2684.5,0.02933808]
[1646853449375,12.41726317,2685.1,2684.5,0.02933808]
[1646853449578,1.106,2684.9,2684.5,0.02933808]
[1646853449769,2.106,2684.9,2684.5,0.02933808]
[1646853450174,2.106,2684.9,2684.6,0.186]
[1646853450175,1.106,2684.8,2684.6,0.186]
[1646853450632,1.106,2684.8,2684.5,0.02933808]
[1646853450633,2.03784,2684.8,2684.5,0.02933808]
[1646853450832,2.03784,2684.8,2684.3,1.6589948]
[1646853450833,1.106,2684.8,2684.3,1.6589948]
[1646853451035,1.106,2684.8,2684.5,0.67966936]
[1646853451436,1.5334266,2685.0,2684.6,0.67966936]
[1646853451639,1.5334266,2685.0,2684.9,0.77264645]
[1646853451838,1.5334266,2685.0,2684.6,0.67966936]
[1646853452038,1.5334266,2685.0,2684.7,0.67966936]
[1646853452242,1.5334266,2685.0,2684.6,0.67966936]
[1646853452440,1.5334266,2685.0,2684.5,0.67966936]
[1646853452441,1.4334266,2685.0,2684.5,0.67966936]
[1646853452839,1.4334266,2685.0,2684.6,0.92692949]
[1646853453043,1.4334266,2685.0,2684.7,0.00316185]
[1646853453847,0.93163,2685.1,2684.7,0.67966936]
[1646853454247,0.93163,2685.1,2684.7,0.68283115]
[1646853454677,0.93163,2685.1,2684.8,0.67966936]
[1646853454880,0.0040295,2685.2,2684.9,0.67966936]
[1646853455075,0.017383,2685.5,2684.8,1.0776]
[1646853455076,0.017383,2685.5,2685.0,0.67966936]
[1646853455474,0.93145,2686.0,2685.0,0.67966936]
[1646853455677,1.86279,2685.9,2685.1,0.67966936]
[1646853455876,1.86279,2685.9,2685.2,1.10747105]
[1646853456076,1.86279,2685.9,2685.8,0.91708876]
[1646853456380,1.86282,2686.3,2685.8,0.91708876]
[1646853456381,0.011814,2686.1,2685.8,0.91708876]
[1646853456577,0.93132,2686.4,2685.8,0.91708876]
[1646853456778,1.86245,2686.3,2685.8,0.91708876]
[1646853456978,0.93131,2686.2,2685.8,0.91708876]
[1646853457178,0.93131,2686.2,2685.2,0.67966936]
[1646853457482,0.93142,2685.9,2685.2,0.67966936]
[1646853457677,0.93142,2685.9,2685.1,0.67966936]
[1646853458114,1.86282,2685.8,2685.6,1.03138596]
[1646853458922,1.86684958,2685.8,2685.6,1.03138596]
[1646853459722,1.86684958,2685.8,2685.1,0.67966936]
[1646853459922,1.86282,2685.8,2685.2,0.67966936]
[1646853460126,1.23139,2685.9,2685.8,0.61214823]
[1646853460524,3.09434,2685.9,2685.8,2.15900114]
[1646853460725,3.09434,2685.9,2685.2,0.00096]
[1646853460726,5.5,2685.8,2685.2,0.00096]
[1646853460925,0.93165,2685.7,2684.8,0.00096]
[1646853461127,0.93165,2685.7,2684.6,0.00096]
[1646853461128,1.0,2685.3,2684.6,0.00096]
[1646853461324,3.941,2685.2,2684.4,0.0098816]
[1646853461528,13.17347376,2685.1,2684.4,0.0089216]
[1646853461725,11.26,2684.7,2684.4,0.0178432]
[1646853461967,0.441,2684.6,2684.4,0.0178432]
[1646853462165,0.441,2684.6,2684.4,0.0356864]
[1646853462366,0.741,2684.6,2684.4,0.0356864]
[1646853462565,0.741,2684.6,2684.4,0.03849367]
[1646853462566,0.441,2684.6,2684.4,0.03849367]
[1646853462769,0.441,2684.6,2684.3,0.0237316]
[1646853463171,2.30501,2684.6,2684.3,0.0237316]
[1646853463473,0.0427802,2684.4,2684.2,0.04197912]
[1646853463671,1.3730823,2684.4,2684.2,0.04197912]
[1646853463874,1.373,2684.4,2684.2,0.04197912]
[1646853464071,1.673,2684.4,2684.2,0.04197912]
[1646853464273,0.93202,2684.3,2684.2,0.04197912]
[1646853464474,5.17354792,2684.4,2684.2,0.04197912]
[1646853464675,4.87354792,2684.4,2684.2,0.04197912]
[1646853465075,3.00948792,2684.4,2684.2,0.72164848]
[1646853465381,1.23196,2684.6,2684.3,0.67966936]
[1646853465616,0.93196,2684.6,2684.3,0.67966936]
[1646853465813,0.93196,2684.6,2684.5,1.18698525]
[1646853466013,0.93196,2684.6,2684.3,0.67966936]
[1646853466216,0.93196,2684.6,2684.3,0.00094632]
[1646853466217,0.93199,2684.5,2684.3,0.00094632]
[1646853467021,0.93199,2684.5,2684.2,0.04197912]
[1646853467421,1.86398,2684.5,2684.3,0.00314739]
[1646853468420,1.86398,2684.5,2684.2,0.04197912]
[1646853468621,0.93199,2684.5,2684.3,0.00314739]
[1646853469465,0.93199,2684.5,2684.2,1.63874654]
[1646853469764,0.93199,2684.5,2684.3,0.00314739]
[1646853469968,0.93196,2684.6,2684.4,0.67966936]
[1646853470173,1.86339,2685.0,2684.4,0.67966936]
[1646853470577,0.00404463,2685.1,2684.5,0.67966936]
[1646853470771,3.5,2685.4,2684.5,0.67966936]
[1646853470972,2.877489,2685.6,2685.1,0.89414761]
[1646853471173,1.86311,2685.6,2685.1,0.89414761]
[1646853471372,2.79467,2685.3,2685.1,0.89414761]
[1646853471571,2.79467,2685.3,2685.2,0.07284986]
[1646853471970,2.79467,2685.3,2684.6,0.76693672]
[1646853472172,2.79860902,2685.3,2684.7,0.0856224]
[1646853472375,0.93164,2685.2,2684.7,0.0856224]
[1646853472673,0.93167,2685.1,2684.3,0.77352271]
[1646853472874,0.947464,2685.0,2684.4,0.08877955]
[1646853473122,0.947464,2685.0,2684.2,0.76354911]
[1646853473123,0.04969554,2684.9,2684.2,0.04197912]
[1646853473324,0.441,2684.9,2684.2,0.72164848]
[1646853473522,0.97843061,2684.8,2684.2,0.76354977]
[1646853473723,0.04947014,2684.5,2684.2,0.08388041]
[1646853473924,0.04947014,2684.5,2684.0,0.05291696]
[1646853473925,1.86425,2684.3,2684.0,0.05291696]
[1646853474123,1.86425,2684.3,2683.5,0.03590868]
[1646853474124,16.76,2684.0,2683.5,0.03590868]
[1646853474330,5.5,2683.8,2683.2,0.94625911]
[1646853474524,0.93225,2683.6,2683.3,0.02105648]
[1646853474723,0.98767028,2683.6,2683.3,0.02105648]
[1646853474926,0.04847006,2683.5,2683.3,0.02105648]
[1646853475125,2.60543,2683.7,2683.3,0.02105648]
[1646853475126,3.23768,2683.7,2683.6,1.49601306]
[1646853475329,2.79668,2683.7,2683.6,1.49601306]
[1646853476127,2.79668,2683.7,2682.9,21.46004574]
[1646853476329,2.79668,2683.7,2683.0,2.31958997]
[1646853476528,2.79668,2683.7,2682.9,17.90880423]
[1646853476888,2.79668,2683.7,2682.9,19.11693903]
[1646853477078,2.79668,2683.7,2682.9,17.75880423]
[1646853477278,2.83915386,2683.7,2683.1,1.05003493]
[1646853477478,2.79668,2683.7,2683.1,1.05003493]
[1646853478285,2.79668,2683.7,2683.3,0.00300885]
[1646853478483,1.86443,2683.7,2683.3,0.00300885]
[1646853478685,1.86443,2683.7,2683.6,0.89086346]
[1646853478986,1.86443,2683.7,2683.6,0.9072785]
[1646853479185,1.86443,2683.7,2683.6,0.01641504]
[1646853480188,1.86443,2683.7,2683.2,1.09809054]
[1646853480189,0.93214,2683.6,2683.2,1.09809054]
[1646853480386,0.06218291,2683.5,2683.2,1.09809054]
[1646853480614,0.93214,2683.6,2683.2,1.09809054]
[1646853480615,0.9321,2683.6,2683.5,0.00300857]
[1646853481619,0.9321,2683.6,2683.3,1.54785261]
[1646853481817,1.23545346,2683.8,2683.3,1.91755261]
[1646853482019,0.00346346,2683.8,2683.4,1.91755261]
[1646853482220,0.00346346,2683.8,2683.5,1.91755261]
[1646853482418,0.00346346,2683.8,2683.7,3.3697]
[1646853482620,1.86323,2685.2,2683.8,0.00584385]
[1646853482621,1.874897,2685.2,2683.8,0.00584385]
[1646853482819,1.86323,2685.2,2684.8,1.20133531]
[1646853483020,0.93154,2685.1,2684.9,1.54785261]
[1646853483921,1.86294,2685.6,2684.9,1.54785261]
[1646853484123,1.86294,2685.6,2685.0,0.07589775]
[1646853484124,2.79445,2685.6,2685.0,0.07589775]
[1646853484394,1.1442511,2685.6,2685.5,0.99338227]
[1646853484595,1.1442511,2685.6,2685.5,2.5404745]
[1646853484794,0.9472317,2685.7,2685.5,0.0404745]
[1646853484995,0.9472317,2685.7,2685.1,0.6902195]
[1646853485196,0.93124,2686.0,2685.2,0.76818316]
[1646853485395,0.00318992,2685.7,2685.3,0.0789244]
[1646853485599,0.00318992,2685.7,2685.5,0.94802356]
[1646853485798,0.00318992,2685.7,2685.6,0.06558967]
[1646853486296,0.01275776,2686.1,2685.4,0.6902195]
[1646853486297,0.942917,2686.0,2685.4,0.6902195]
[1646853486496,0.011667,2686.4,2685.5,0.07729122]
[1646853486497,0.04878788,2686.3,2685.5,0.07729122]
[1646853486697,0.00389241,2685.8,2685.5,0.07729122]
[1646853487096,0.00389241,2685.8,2685.3,0.07798801]
[1646853487499,0.93137,2685.8,2685.7,1.23417889]
[1646853487697,0.93137,2685.8,2685.4,0.08266778]
[1646853487996,0.00389244,2685.7,2685.4,0.08266778]
[1646853488831,3.5,2686.5,2685.4,0.08266778]
[1646853489032,2.79403,2686.6,2685.4,0.08266778]
[1646853489033,0.00389244,2685.7,2685.4,0.08266778]
[1646853489331,0.00389244,2685.7,2685.3,0.00096]
[1646853489532,0.00389244,2685.7,2685.4,0.99198372]
[1646853489730,0.00389244,2685.7,2685.1,0.6902195]
[1646853489929,0.00389244,2685.7,2685.0,0.6902195]
[1646853490132,2.79436,2685.7,2685.1,0.6902195]
[1646853490332,2.79825996,2685.7,2685.1,0.6902195]
[1646853490730,0.014452,2685.6,2685.0,0.6902195]
[1646853491132,2.79825996,2685.7,2685.0,0.75632076]
[1646853491340,2.79436,2685.7,2685.0,0.06610126]
[1646853491532,2.79436,2685.7,2685.1,0.186]
[1646853491533,0.00390003,2685.4,2685.1,0.186]
[1646853491733,0.93536003,2685.4,2685.1,0.186]
[1646853491973,0.99358594,2685.4,2684.8,0.1862]
[1646853492185,0.023105,2685.0,2684.6,0.8764195]
[1646853492374,0.023105,2685.0,2684.4,0.92034583]
[1646853492375,0.02472,2684.7,2684.4,0.6902195]
[1646853492574,2.43209,2684.7,2684.1,0.6902195]
[1646853492774,0.04927721,2684.5,2684.1,0.6902195]
[1646853493376,0.04927721,2684.5,2684.2,0.6902195]
[1646853493576,1.86363,2684.4,2683.9,0.8764195]
[1646853493777,0.04731805,2684.3,2683.8,0.69606335]
[1646853494081,0.0476758,2684.3,2683.8,0.00584385]
[1646853494276,2.70908404,2684.4,2683.8,0.00584385]
[1646853494676,1.86388,2684.3,2683.8,0.00584385]
[1646853494876,1.86388,2684.3,2683.8,0.09313551]
[1646853495076,2.79986248,2684.2,2683.8,0.09313551]
[1646853495276,2.79578,2684.1,2683.8,0.09313551]
[1646853495478,2.79578,2684.1,2683.8,0.00584385]
[1646853495716,1.86386,2684.1,2683.8,0.00584385]
[1646853495916,1.86386,2684.1,2683.8,0.09442103]
[1646853496118,1.86386,2684.1,2683.8,1.03089637]
[1646853496316,1.86776252,2684.1,2683.8,1.03089637]
[1646853496518,1.86776252,2684.1,2683.8,0.00584385]
[1646853497322,1.86386,2684.1,2683.8,0.00584385]
[1646853497519,1.86780698,2684.1,2683.8,0.00584385]
[1646853498322,0.93587698,2684.1,2683.8,0.69606335]
[1646853498522,0.93587698,2684.1,2683.9,0.08929871]
[1646853498523,0.93193,2684.1,2683.9,0.08929871]
[1646853498821,0.93193,2684.1,2684.0,0.07982186]
[1646853498822,0.93572434,2684.1,2684.0,0.07982186]
[1646853499022,0.93572434,2684.1,2683.8,0.08655596]
[1646853499468,1.86757434,2684.1,2683.8,0.08655596]
[1646853499668,1.86378,2684.1,2683.8,0.08655596]
[1646853499872,1.86757434,2684.1,2683.9,0.94767373]
[1646853500069,1.86757434,2684.1,2684.0,0.08333062]
[1646853500673,1.86757434,2684.1,2683.8,0.08217579]
[1646853500873,1.86378,2684.1,2683.8,0.08217579]
[1646853501073,1.86378,2684.1,2683.9,0.08276482]
[1646853501675,2.79576,2684.1,2683.9,0.08276482]
[1646853501877,2.79576,2684.1,2683.8,0.00584385]
[1646853502274,2.79965629,2684.1,2683.8,0.00584385]
[1646853503324,2.79576,2684.1,2683.8,0.00584385]
[1646853503525,0.9358263,2684.1,2683.8,0.00584385]
[1646853504026,0.9358263,2684.1,2683.8,0.09061895]
[1646853504227,0.93196,2684.0,2683.8,0.09061895]
[1646853504428,0.21291397,2684.1,2683.8,0.09061895]
[1646853504725,1.14882768,2684.1,2683.8,0.09061895]
[1646853504925,1.14882768,2684.1,2683.9,1.54780816]
[1646853505127,0.21681768,2684.1,2684.0,0.07887644]
[1646853505326,0.21681768,2684.1,2684.0,1.6266846]
[1646853505525,0.21681768,2684.1,2684.0,1.54780816]
[1646853505727,0.21291397,2684.1,2684.0,1.54780816]
[1646853505926,0.21291397,2684.1,2684.0,0.6902195]
[1646853506325,0.00390369,2684.2,2684.0,2.23802766]
[1646853506530,0.00390369,2684.2,2684.1,1.54780816]
[1646853506726,1.0,2685.6,2684.2,5.51171107]
[1646853506727,4.5,2685.6,2684.2,5.51171107]
[1646853506978,3.72643,2685.4,2684.4,0.69086672]
[1646853507171,3.72643,2685.4,2684.5,1.54780816]
[1646853507374,0.9315,2685.0,2684.6,1.54780816]
[1646853507572,0.9315,2685.0,2684.7,1.54780816]
[1646853507770,0.9315,2685.0,2684.5,2.23867488]
[1646853507971,0.9315,2685.0,2684.6,1.54780816]
[1646853508175,0.9315,2685.0,2684.7,1.54780816]
[1646853508377,0.9315,2685.0,2684.8,1.54780816]
[1646853508579,0.9315,2685.0,2684.9,1.54780816]
[1646853508976,0.9315,2685.0,2684.8,0.89297513]
[1646853509183,0.93143,2685.2,2684.9,1.54780816]
[1646853509777,0.00319162,2685.1,2684.9,1.54780816]
[1646853510481,0.93143,2685.2,2684.9,1.54780816]
[1646853510720,0.00319162,2685.1,2684.9,2.23867488]
[1646853511119,0.00319162,2685.1,2685.0,1.54780816]
[1646853511519,0.00319162,2685.1,2684.9,1.54780816]
[1646853511721,0.93143,2685.2,2685.0,1.54780816]
[1646853512018,0.93548006,2685.2,2685.1,1.49780816]
[1646853512221,0.93548006,2685.2,2684.8,1.19297513]
[1646853512820,0.93143,2685.2,2684.8,1.88384185]
[1646853513222,0.00405008,2685.1,2684.8,1.88384185]
[1646853514122,0.943037,2685.4,2684.8,1.19297513]
[1646853514366,0.00384039,2685.1,2684.8,1.88384185]
[1646853515369,0.943037,2685.4,2684.8,1.88384185]
[1646853515568,0.00384039,2685.1,2684.8,1.19297513]
[1646853515769,0.00384039,2685.1,2684.9,0.08021321]
[1646853516568,0.943037,2685.4,2684.9,0.08021321]
[1646853516770,0.00375423,2685.1,2684.9,0.08021321]
[1646853517272,0.00375423,2685.1,2684.7,0.09001829]
[1646853517273,0.01744123,2685.1,2684.7,0.09001829]
[1646853517670,0.01744123,2685.1,2684.4,0.07782458]
[1646853517671,0.013687,2685.1,2684.4,0.07782458]
[1646853518131,0.00394799,2685.0,2684.4,1.05567721]
[1646853518322,0.93558799,2685.0,2684.4,0.97785263]
[1646853518520,0.93558799,2685.0,2684.5,0.08925479]
[1646853518923,0.93164,2685.0,2684.5,0.08925479]
[1646853519123,0.00394803,2684.9,2684.5,0.08925479]
[1646853519525,0.01663403,2684.9,2684.5,0.08925479]
[1646853519821,0.01663403,2684.9,2684.2,0.01171107]
[1646853519822,1.8634,2684.8,2684.2,0.01171107]
[1646853520026,1.88045,2684.8,2684.2,0.01171107]
[1646853520423,1.88045,2684.8,2684.2,0.08905956]
[1646853520629,2.8122,2684.8,2684.2,0.08905956]
[1646853521626,0.93558642,2684.6,2684.2,0.08905956]
[1646853522470,0.93184,2684.5,2684.2,0.08905956]
[1646853522672,0.94479,2684.6,2684.2,0.08905956]
[1646853522870,0.00389645,2684.5,2684.2,0.01171107]
[1646853523775,0.94479,2684.6,2684.2,0.01171107]
[1646853523975,0.00395101,2684.5,2684.2,0.01171107]
[1646853524175,0.00395101,2684.5,2684.2,0.09318663]
[1646853524575,1.17852403,2684.8,2684.2,0.09318663]
[1646853525478,0.93169,2684.6,2684.2,0.09318663]
[1646853525721,0.88169,2684.6,2684.2,0.09318663]
[1646853526321,0.8848818,2684.6,2684.2,0.09318663]
[1646853526720,0.8848818,2684.6,2684.2,1.17922741]
[1646853526920,0.8848818,2684.6,2684.3,0.06972678]
[1646853527320,0.88169,2684.6,2684.3,0.06972678]
[1646853527520,0.88574341,2684.6,2684.3,0.06972678]
[1646853527923,0.88574341,2684.6,2684.2,0.01171107]
[1646853527924,0.89750041,2684.6,2684.2,0.01171107]
[1646853528123,0.012051,2684.4,2684.2,0.01171107]
[1646853528526,0.012051,2684.4,2683.8,0.00584385]
[1646853528527,0.453051,2684.4,2683.8,0.00584385]
[1646853528725,0.93211,2684.3,2683.8,0.00584385]
[1646853528926,0.011852,2684.2,2683.8,0.00584385]
[1646853529128,2.808122,2684.2,2683.8,0.00584385]
[1646853529567,3.85190907,2684.2,2683.8,0.00584385]
[1646853529766,0.441,2684.1,2683.8,0.00584385]
[1646853529968,1.37303,2684.1,2683.8,0.00584385]
[1646853530374,1.67303,2684.1,2683.8,0.00584385]
[1646853530572,1.23203,2684.1,2683.8,0.00584385]
[1646853530777,0.93203,2684.1,2683.8,0.00584385]
[1646853530975,0.93203,2684.1,2683.8,0.08796207]
[1646853531572,0.93203,2684.1,2684.0,1.03331763]
[1646853531972,0.93203,2684.1,2684.0,2.58101047]
[1646853533625,0.012051,2684.4,2684.0,3.22187719]
[1646853533626,0.93183,2684.3,2684.0,3.22187719]
[1646853533825,0.93183,2684.3,2684.1,1.54769284]
[1646853534025,0.93183,2684.3,2684.1,2.23855956]
[1646853534225,0.011667,2684.6,2684.1,2.23855956]
[1646853534425,0.011667,2684.6,2684.2,2.23855956]
[1646853534625,0.011667,2684.6,2684.3,1.54769284]
[1646853534828,0.011667,2684.6,2684.1,0.69086672]
[1646853534829,0.00396989,2684.6,2684.4,1.54769284]
[1646853535026,0.00396989,2684.6,2684.5,1.54769284]
[1646853535433,0.00396989,2684.6,2684.2,2.23855956]
[1646853535633,0.01579589,2684.6,2684.3,1.54769284]
[1646853535832,0.011826,2684.6,2684.4,1.54769284]
[1646853536131,0.011826,2684.6,2684.5,2.47109186]
[1646853536331,0.01567455,2684.7,2684.5,2.47109186]
[1646853536529,0.01567455,2684.7,2684.6,1.54769284]
[1646853536728,0.00400755,2684.7,2684.6,1.54769284]
[1646853536970,0.011667,2684.8,2684.6,1.54769284]
[1646853537171,0.01567452,2684.8,2684.6,1.54769284]
[1646853538180,0.011667,2684.8,2684.6,1.54769284]
[1646853538376,0.01567451,2684.8,2684.6,1.54769284]
[1646853539378,0.011667,2684.8,2684.6,1.54769284]
[1646853539579,1.0,2684.7,2684.6,1.54769284]
[1646853540633,1.0,2684.7,2684.2,2.23855956]
[1646853540826,1.93175,2684.7,2684.3,1.54769284]
[1646853541021,0.012037,2684.6,2684.4,1.54769284]
[1646853541225,0.012037,2684.6,2684.5,1.54769284]
[1646853541625,1.93175,2684.7,2684.4,1.11223123]
[1646853541626,1.943417,2684.7,2684.4,1.11223123]
[1646853541821,2.49451494,2684.7,2684.5,1.54769284]
[1646853542023,0.947311,2684.7,2684.5,1.54769284]
[1646853542223,1.247311,2684.7,2684.5,1.54769284]
[1646853542823,0.012121,2684.6,2684.2,0.69086672]
[1646853543023,0.012087,2684.5,2684.3,1.54764066]
[1646853543227,0.94425,2684.4,2684.1,0.69086672]
[1646853543434,0.01287,2684.2,2683.9,0.08533681]
[1646853543629,0.012305,2684.1,2684.0,1.547779]
[1646853543828,0.012305,2684.1,2683.9,1.547779]
[1646853544034,0.012321,2684.0,2683.9,1.547779]
[1646853544232,0.453321,2684.0,2683.9,1.547779]
[1646853544467,6.43217,2683.9,2683.8,0.00584385]
[1646853544667,7.896386,2683.9,2683.8,0.00584385]
[1646853544871,6.22183705,2683.9,2683.8,0.00584385]
[1646853545068,6.23370305,2683.9,2683.8,0.00584385]
[1646853545468,5.23370305,2683.9,2683.8,0.00584385]
[1646853546074,9.83964793,2683.9,2683.8,0.00584385]
[1646853546270,20.29370305,2683.9,2683.8,4.385e-05]
[1646853546471,20.29370305,2683.9,2683.2,0.03283008]
[1646853546472,11.26,2683.7,2683.2,0.03283008]
[1646853546670,0.01257,2683.3,2683.2,0.03283008]
[1646853546871,0.04305422,2683.1,2683.0,0.007]
[1646853547070,0.50841122,2683.1,2683.0,0.007]
[1646853547770,0.49645022,2683.1,2683.0,0.007]
[1646853547972,0.44645022,2683.1,2683.0,0.007]
[1646853548228,2.176627,2683.2,2683.0,0.08575258]
[1646853548630,1.876627,2683.2,2683.0,0.007]
[1646853548828,2.176627,2683.2,2683.0,0.08120239]
[1646853549031,0.93248,2683.2,2683.0,0.08120239]
[1646853549232,0.011667,2683.5,2683.1,0.06936888]
[1646853549427,0.011693,2683.5,2683.1,0.06936888]
[1646853550031,0.012282,2683.4,2683.1,0.06936888]
[1646853550228,0.01257,2683.2,2683.1,0.06936888]
[1646853550634,1.23237,2683.3,2683.1,0.06936888]
[1646853551631,1.23237,2683.3,2683.1,0.0717582]
[1646853552273,0.93237,2683.3,2683.1,0.0717582]
[1646853552473,0.93207,2683.6,2683.1,0.69086672]
[1646853552674,1.86417,2683.8,2683.0,0.007]
[1646853552675,0.011667,2683.8,2683.2,0.69086672]
[1646853552875,2.79656,2684.6,2683.4,1.06056672]
[1646853552876,0.011667,2684.1,2683.4,1.06056672]
[1646853553079,0.011667,2684.3,2683.5,0.1862]
[1646853553277,0.00390701,2684.6,2683.5,0.27369869]
[1646853553278,0.01257,2684.4,2683.5,0.27369869]
[1646853553480,0.01257,2684.4,2683.6,0.45350348]
[1646853553679,0.01257,2684.4,2683.7,0.96574758]
[1646853553882,0.93187,2684.3,2683.9,0.06880115]
[1646853554879,0.93187,2684.3,2684.1,0.08499532]
[1646853555280,0.943774,2684.3,2684.1,0.08499532]
[1646853555727,0.93187,2684.3,2684.1,0.08499532]
[1646853557529,0.012108,2684.2,2684.1,0.08499532]
[1646853558529,1.243618,2684.3,2684.1,0.08499532]
[1646853559136,3.524428,2684.2,2683.8,0.07575662]
[1646853559375,0.01257,2684.0,2683.6,0.08537048]
[1646853559572,0.93212,2684.1,2683.6,0.08537048]
[1646853559573,0.01252,2683.8,2683.6,0.08537048]
[1646853559875,0.01252,2683.8,2683.4,0.082989]
[1646853559876,0.011957,2683.8,2683.4,0.082989]
[1646853560073,0.011957,2683.8,2683.4,0.9586432]
[1646853560074,0.012218,2683.7,2683.4,0.9586432]
[1646853560375,0.01173,2683.8,2683.5,0.07728492]
[1646853560776,0.93213,2683.8,2683.6,0.69086672]
[1646853560976,0.93213,2683.8,2683.7,0.77175616]
[1646853561177,0.93213,2683.8,2683.7,0.69086672]
[1646853561376,0.93213,2683.8,2683.5,1.25563783]
[1646853561779,0.943587,2684.0,2683.6,0.92034583]
[1646853561975,0.943587,2684.0,2683.8,0.69165082]
[1646853562176,0.93192,2684.0,2683.8,1.69384236]
[1646853562777,0.93192,2684.0,2683.8,1.00219154]
[1646853563431,0.93192,2684.0,2683.8,1.69384236]
[1646853564335,0.011667,2684.1,2683.8,1.00219154]
[1646853564536,0.943497,2684.3,2684.0,0.69165082]
[1646853564733,0.93183,2684.3,2684.0,0.69165082]
[1646853564932,2.79584,2684.8,2684.7,0.70655488]
[1646853565131,2.79584,2684.8,2684.7,2.25428065]
[1646853566975,3.79584,2684.8,2684.7,2.25428065]
[1646853567372,2.79584,2684.8,2684.7,2.25428065]
[1646853568880,0.93574234,2684.9,2684.7,2.25428065]
[1646853569077,0.93574234,2684.9,2684.8,1.54772577]
[1646853569482,0.93184,2684.9,2684.8,1.54772577]
[1646853569680,0.93575086,2684.9,2684.8,1.54772577]
[1646853569878,0.93575086,2684.9,2684.8,2.6739477]
[1646853570486,1.23184,2684.9,2684.8,2.6739477]
[1646853571529,1.23184,2684.9,2684.8,1.54772577]
[1646853572130,1.23184,2684.9,2684.7,0.70655488]
[1646853572924,0.9319,2684.8,2684.7,0.70655488]
[1646853573730,1.23574961,2684.9,2684.7,2.25424537]
[1646853573930,1.78288533,2684.9,2684.8,1.54769049]
[1646853574131,1.77897572,2684.9,2684.8,1.54769049]
[1646853574376,1.78288533,2684.9,2684.8,1.54769049]
[1646853574780,1.48288533,2684.9,2684.8,1.54769049]
[1646853575378,0.5,2685.0,2684.8,1.54769049]
[1646853575580,0.5039096,2685.0,2684.8,1.54769049]
[1646853576680,0.5,2685.0,2684.8,1.54769049]
[1646853576880,0.50390977,2685.0,2684.8,1.54769049]
[1646853577685,0.93163,2684.9,2684.8,1.54769049]
[1646853578134,2.36325,2685.0,2684.8,1.54769049]
[1646853578326,2.36715977,2685.0,2684.8,1.54769049]
[1646853578526,0.93154,2684.9,2684.7,0.70655488]
[1646853578726,1.86311,2684.9,2684.7,0.70655488]
[1646853578927,2.79466,2684.9,2684.7,0.70655488]
[1646853579327,2.7985698,2684.9,2684.7,0.70655488]
[1646853580229,2.79466,2684.9,2684.7,0.70655488]
[1646853580427,2.79466,2684.9,2684.8,1.18206256]
[1646853580428,2.79856977,2684.9,2684.8,1.18206256]
[1646853581431,3.35586452,2684.9,2684.8,1.18206256]
[1646853581631,3.35586452,2684.9,2684.7,0.70655488]
[1646853582071,1.86336,2684.8,2684.7,0.70655488]
[1646853584077,3.3594949,2684.9,2684.7,0.70655488]
[1646853585076,3.35586452,2684.9,2684.7,0.70655488]
[1646853585281,2.42794488,2684.9,2684.7,0.70655488]
[1646853586123,4.29124488,2684.9,2684.7,0.70655488]
[1646853586323,4.28761452,2684.9,2684.7,0.70655488]
[1646853586526,6.43157,2684.8,2684.1,0.00096]
[1646853586720,6.43157,2684.8,2683.8,1.23526]
[1646853586721,6.87257,2684.8,2683.8,1.23526]
[1646853586922,2.79567,2684.7,2683.8,1.2343]
[1646853587120,0.93202,2684.3,2683.8,1.2343]
[1646853587322,1.86397,2684.4,2684.3,0.71914702]
[1646853587523,5.5,2684.3,2683.5,0.149092]
[1646853587720,0.93205,2684.1,2683.5,0.149092]
[1646853587925,2.79621,2683.9,2683.5,0.149092]
[1646853588122,4.66031,2683.9,2683.5,0.149092]
[1646853588328,4.96031,2683.9,2683.5,0.149092]
[1646853588526,6.82441,2683.9,2683.6,0.10069999]
[1646853588727,6.82441,2683.9,2683.4,0.28689999]
[1646853588926,6.82441,2683.9,2683.4,0.28929336]
[1646853589127,0.93205,2683.8,2683.4,0.28929336]
[1646853589374,0.93203,2683.7,2683.4,0.28929336]
[1646853589774,1.0,2683.6,2683.4,0.28689999]
[1646853589974,1.0,2683.6,2683.5,0.10069999]
[1646853590581,1.23203,2683.7,2683.5,0.10069999]
[1646853590582,0.93203,2683.7,2683.5,0.10069999]
[1646853591078,0.93203,2683.7,2683.6,1.16659262]
[1646853591477,0.93203,2683.7,2683.6,1.85824344]
[1646853591676,0.93203,2683.7,2683.6,1.16537947]
[1646853592776,0.93203,2683.7,2683.6,1.15287947]
[1646853594846,0.93203,2683.7,2683.6,0.10069999]
[1646853595048,0.93203,2683.7,2683.5,0.79235081]
[1646853595446,0.93199,2683.6,2683.5,0.79235081]
[1646853595647,0.93199,2683.6,2683.5,0.10069999]
[1646853596250,0.93199,2683.6,2683.4,0.10069999]
[1646853596451,0.93203,2683.7,2683.4,0.10069999]
[1646853596651,0.93203,2683.7,2683.4,0.79235081]
[1646853597276,0.93203,2683.7,2683.4,0.10069999]
[1646853597676,0.93199,2683.6,2683.4,0.10069999]
[1646853598078,0.93199,2683.6,2683.3,0.24980999]
[1646853598279,0.93199,2683.6,2683.5,0.10069999]
[1646853598679,0.93199,2683.6,2683.5,1.64887981]
[1646853599680,0.93199,2683.6,2683.5,1.53988881]
[1646853599879,0.93199,2683.6,2683.4,0.00272976]
[1646853600284,3.5,2683.5,2683.4,0.00272976]
[1646853600484,3.5,2683.5,2682.9,14.19256628]
[1646853600485,7.36496,2683.3,2682.9,14.19256628]
[1646853600728,10.9609464,2683.2,2682.9,14.19256628]
[1646853600927,1.0,2683.0,2682.9,3.0124672]
[1646853601134,5.5,2682.9,2682.6,0.05901346]
[1646853601332,5.5,2682.7,2682.4,0.07278002]
[1646853601537,5.5,2682.5,2682.0,0.00583008]
[1646853601727,0.04192625,2682.3,2682.0,0.00583008]
[1646853601926,0.04192625,2682.3,2682.1,0.04092649]
[1646853601927,5.54320462,2682.2,2682.1,0.04092649]
[1646853602133,6.54320462,2682.2,2682.1,0.04092649]
[1646853602328,10.04320462,2682.2,2682.0,0.05315508]
[1646853602528,0.05346878,2682.1,2682.0,0.05315508]
[1646853603333,0.05346878,2682.1,2682.0,0.02332032]
[1646853603334,1.86539,2682.1,2682.0,0.02332032]
[1646853603935,0.7645,2682.5,2682.0,0.02332032]
[1646853603936,0.3,2682.5,2682.0,0.02332032]
[1646853604232,4.40638643,2682.7,2682.0,0.02332032]
[1646853604233,2.79777,2682.6,2682.0,0.02332032]